bitfinex/quotes_ETHUSD_20240630
["timestamp","ask_amount","ask_price","bid_price","bid_amount"]
[1719779350404,2.3901,3435.8,3435.0,0.07512915]
[1719779350608,3.2221,3435.8,3435.0,0.07512915]
[1719779350907,3.2221,3435.8,3435.0,0.30571913]
[1719779352414,3.2221,3435.8,3435.0,0.07512915]
[1719779352693,3.2221,3435.8,3434.8,0.57838235]
[1719779352880,3.2221,3435.8,3435.1,0.07508787]
[1719779353082,3.2221,3435.8,3434.8,0.57838235]
[1719779353289,3.2221,3435.8,3435.2,0.07504659]
[1719779353538,3.54431,3435.8,3434.8,0.57838235]
[1719779353820,3.2221,3435.8,3435.0,0.05821424]
[1719779354120,3.2221,3435.8,3435.1,0.07508787]
[1719779354316,3.2221,3435.8,3435.2,0.05821428]
[1719779354516,3.2221,3435.8,3435.1,0.07508787]
[1719779354722,3.2221,3435.8,3434.8,1.41038235]
[1719779354939,3.2221,3435.8,3435.2,0.07504659]
[1719779355099,2.2599,3436.2,3435.2,1.4224]
[1719779355302,2.2599,3436.2,3435.3,1.1466303]
[1719779355633,2.2599,3437.8,3435.6,0.832]
[1719779355848,2.2599,3436.5,3435.7,0.05820544]
[1719779356145,2.2599,3436.5,3435.7,0.13301359]
[1719779356839,5.2599,3436.5,3435.7,0.07480815]
[1719779356990,5.86909,3436.5,3435.7,0.13301357]
[1719779357191,5.86909,3436.5,3435.7,0.05820542]
[1719779357431,6.70109,3436.5,3435.8,0.07473262]
[1719779357829,5.86909,3436.5,3435.8,0.07473262]
[1719779357992,0.586909,3436.4,3435.8,0.07473262]
[1719779358410,3.586909,3436.4,3435.6,0.05820545]
[1719779358623,3.586909,3436.4,3435.9,0.07469137]
[1719779358830,3.586909,3436.4,3435.6,0.05820545]
[1719779359340,3.586909,3436.4,3435.7,0.07477388]
[1719779361146,0.832,3436.3,3435.7,0.07477388]
[1719779361364,1.4998809,3436.3,3435.7,0.07477388]
[1719779369722,0.832,3435.9,3435.7,0.07477388]
[1719779369917,0.832,3435.9,3434.9,0.5904]
[1719779370156,0.832,3435.5,3434.6,2.94281295]
[1719779370376,0.832,3435.5,3435.0,0.07025035]
[1719779370673,0.832,3435.5,3434.7,1.23759709]
[1719779370823,0.832,3435.7,3435.1,0.07020908]
[1719779371018,1.17046781,3435.7,3434.7,0.832]
[1719779371230,0.832,3435.7,3435.2,0.0701678]
[1719779371467,0.832,3435.7,3434.7,0.832]
[1719779371669,0.832,3435.7,3435.3,0.07012653]
[1719779371821,0.832,3435.7,3434.7,0.832]
[1719779372135,0.832,3435.7,3434.6,0.5904]
[1719779372136,0.832,3435.7,3434.8,0.90233292]
[1719779372474,0.832,3435.7,3434.8,0.07033292]
[1719779372618,0.832,3435.7,3434.8,0.87178777]
[1719779372821,0.832,3435.7,3434.8,0.80145485]
[1719779373050,0.832,3435.7,3434.9,0.07029163]
[1719779375361,3.0,3435.0,3434.9,0.07029163]
[1719779386933,3.0,3435.0,3434.9,0.90229163]
[1719779387136,2.3666,3435.9,3434.9,0.90237918]
[1719779387331,2.3666,3435.9,3435.1,0.832]
[1719779387838,2.3666,3435.9,3435.2,0.0679123]
[1719779388075,3.1986,3435.9,3435.2,0.0679123]
[1719779388253,3.51846,3435.9,3435.2,0.0679123]
[1719779388551,3.51846,3435.9,3434.9,0.832]
[1719779389246,3.51846,3435.9,3435.0,0.06799485]
[1719779390156,2.68646,3435.9,3435.0,0.06799485]
[1719779390483,3.51846,3435.9,3435.0,0.06799485]
[1719779392382,0.351846,3435.8,3435.0,0.06799485]
[1719779393358,0.351846,3435.8,3434.9,0.05821763]
[1719779393599,0.351846,3435.8,3435.1,0.0679456]
[1719779393893,0.351846,3435.8,3434.9,0.05821763]
[1719779393894,0.351846,3435.8,3435.2,0.06790433]
[1719779394104,0.351846,3435.8,3435.0,0.832]
[1719779394405,0.351846,3435.8,3435.3,0.06786306]
[1719779394565,0.3550446,3435.7,3435.0,0.832]
[1719779394958,0.3550446,3435.7,3435.1,0.0679456]
[1719779395159,0.3550446,3435.7,3434.8,0.832]
[1719779395664,0.3550446,3435.7,3434.9,0.06802816]
[1719779396377,2.3574,3435.6,3434.9,0.06802816]
[1719779396577,2.71184446,3435.6,3434.9,0.06802816]
[1719779397208,2.3574,3435.6,3434.9,0.06802816]
[1719779400412,2.3574,3435.2,3434.9,0.06802816]
[1719779400577,0.832,3435.1,3434.9,0.06802816]
[1719779400996,2.3574,3435.2,3434.9,0.06802816]
[1719779401305,3.55,3436.2,3434.9,0.06802816]
[1719779401491,2.3574,3435.6,3434.9,0.06802816]
[1719779402372,3.1894,3435.6,3434.9,0.06802816]
[1719779403116,2.3574,3435.6,3435.2,0.832]
[1719779403412,2.3574,3435.6,3435.0,0.832]
[1719779403572,2.3574,3435.6,3435.1,0.05821606]
[1719779403879,2.3574,3435.6,3435.1,0.44517148]
[1719779405711,0.50071194,3435.4,3435.1,0.44517148]
[1719779406012,1.52745235,3435.4,3435.1,0.44517148]
[1719779406171,1.80589665,3435.4,3435.1,0.44517148]
[1719779406514,1.88377751,3435.4,3435.1,0.44517148]
[1719779407274,1.88377751,3435.4,3435.1,0.38695542]
[1719779412819,1.88377751,3435.4,3434.9,0.06802816]
[1719779413019,1.88377751,3435.4,3435.0,1.01350875]
[1719779413210,1.88377751,3435.4,3434.9,0.06802816]
[1719779413385,1.88377751,3435.4,3435.0,1.013507]
[1719779413587,1.88377751,3435.4,3434.9,0.06802816]
[1719779413786,1.88377751,3435.4,3435.0,1.51388221]
[1719779413986,1.88377751,3435.4,3435.0,0.50037526]
[1719779414814,1.88377751,3435.4,3435.1,1.01349334]
[1719779415000,1.88377751,3435.4,3435.0,0.50037526]
[1719779415936,1.88377751,3435.4,3435.1,1.01349542]
[1719779416126,1.88377751,3435.4,3435.0,0.44215837]
[1719779417639,2.55784163,3435.0,3434.8,4.35355554]
[1719779417846,2.55784163,3435.0,3434.9,3.35183505]
[1719779418357,2.55784163,3435.0,3434.9,1.42824293]
[1719779418721,2.55784163,3435.0,3434.9,3.35182702]
[1719779419203,2.55784163,3435.0,3434.9,3.96203256]
[1719779420041,2.55784163,3435.0,3434.9,3.35182702]
[1719779420400,2.55784163,3435.0,3434.9,3.96203256]
[1719779421434,2.55784163,3435.0,3434.9,1.49628527]
[1719779421610,2.55784163,3435.0,3434.9,3.41992139]
[1719779421824,2.55784163,3435.0,3434.9,4.03012693]
[1719779423537,2.55784163,3435.0,3434.9,3.41992139]
[1719779424030,2.55784163,3435.0,3434.9,4.03012693]
[1719779424635,2.55784163,3435.0,3434.9,1.49628527]
[1719779424823,2.55784163,3435.0,3434.9,4.03003689]
[1719779425829,2.55784163,3435.0,3434.9,3.41983135]
[1719779426160,2.55784163,3435.0,3434.9,4.03134109]
[1719779427330,2.55784163,3435.0,3434.9,9.9121416]
[1719779427522,1.94982205,3435.0,3434.9,13.40628674]
[1719779427948,1.94982205,3435.0,3434.9,13.99473994]
[1719779428464,1.94982205,3435.0,3434.9,15.52160494]
[1719779429545,1.94982205,3435.0,3434.9,13.99464497]
[1719779429950,1.94982205,3435.0,3434.9,15.52160494]
[1719779430526,1.94982205,3435.0,3434.9,16.90593497]
[1719779431047,1.94982205,3435.0,3434.9,16.90593462]
[1719779431458,1.94982205,3435.0,3434.9,14.78834721]
[1719779432569,1.94982205,3435.0,3434.9,16.00885639]
[1719779432860,1.94982205,3435.0,3434.9,14.78834721]
[1719779433242,0.86897557,3435.0,3434.9,14.78834721]
[1719779433438,1.88377751,3435.4,3435.3,5.8219]
[1719779433761,1.49130343,3435.4,3435.3,10.67825096]
[1719779433924,1.49130343,3435.4,3435.3,11.2882538]
[1719779434137,1.49130343,3435.4,3435.3,8.75500715]
[1719779434460,1.49130343,3435.4,3435.3,19.53057598]
[1719779434461,1.14130343,3435.4,3435.3,19.53057598]
[1719779434672,0.78130343,3435.4,3435.3,19.83556302]
[1719779434843,0.32,3435.4,3435.3,19.83556302]
[1719779435048,0.32,3435.4,3435.3,22.25778595]
[1719779435367,0.32,3435.4,3435.3,21.48284214]
[1719779435570,0.32,3435.4,3435.3,23.00604985]
[1719779436364,7.32,3436.7,3436.1,2.91025]
[1719779436565,2.328,3436.9,3436.3,0.832]
[1719779436779,2.328,3436.9,3436.3,0.89019498]
[1719779436935,2.328,3436.9,3436.4,0.06730487]
[1719779439769,2.328,3436.9,3436.5,0.832]
[1719779440178,2.328,3436.9,3436.6,0.06715078]
[1719779440547,2.328,3436.9,3436.3,0.89019509]
[1719779440747,2.328,3436.9,3436.7,0.06710955]
[1719779440939,2.328,3436.9,3436.3,0.89019509]
[1719779441146,2.328,3436.9,3436.8,0.06706831]
[1719779441370,2.328,3436.9,3436.3,0.89019509]
[1719779441731,2.328,3436.9,3436.4,0.06723327]
[1719779443264,2.328,3436.9,3436.4,0.89923327]
[1719779443566,2.328,3436.9,3436.4,0.06723327]
[1719779444354,2.328,3437.2,3436.5,0.05819522]
[1719779444680,2.328,3437.2,3436.5,0.89019522]
[1719779444978,2.328,3437.2,3436.6,0.06715078]
[1719779446796,2.328,3437.2,3436.4,0.832]
[1719779446994,2.328,3437.2,3436.7,0.06710955]
[1719779447321,0.616,3437.2,3436.8,0.06706831]
[1719779447459,2.328,3437.1,3436.8,0.06706831]
[1719779447661,2.328,3437.1,3436.2,0.832]
[1719779447919,2.328,3437.1,3436.3,0.06727452]
[1719779449663,2.328,3437.1,3435.5,7.32]
[1719779449664,2.328,3437.1,3435.6,2.91066]
[1719779449975,2.328,3437.1,3435.9,2.91044]
[1719779450172,0.316,3437.0,3436.2,0.832]
[1719779450589,0.316,3437.0,3436.3,0.06503203]
[1719779450810,0.832,3436.8,3436.3,0.06503203]
[1719779451106,2.4168,3436.7,3435.9,0.832]
[1719779451311,2.4168,3436.7,3436.4,0.06498902]
[1719779451630,2.4168,3436.7,3435.9,0.832]
[1719779452126,2.4168,3436.7,3436.0,0.06515402]
[1719779454286,0.832,3436.6,3436.0,0.06515402]
[1719779454486,2.4168,3436.5,3435.6,0.832]
[1719779454725,2.4168,3436.5,3435.8,0.832]
[1719779455132,2.4168,3436.5,3435.9,0.06518909]
[1719779465128,0.832,3437.1,3436.2,0.832]
[1719779465435,3.4488,3437.2,3436.2,0.832]
[1719779465643,0.832,3437.1,3436.3,0.06504703]
[1719779465839,3.0,3437.1,3436.4,0.89019655]
[1719779466149,2.4168,3437.2,3436.5,0.06496454]
[1719779467000,2.4168,3437.2,3436.5,0.89696454]
[1719779467949,2.4168,3437.2,3436.5,0.06496454]
[1719779468159,5.4168,3437.2,3436.5,0.06496454]
[1719779468315,2.4168,3437.1,3436.1,2.91023]
[1719779468654,2.4168,3437.1,3436.2,0.89708828]
[1719779469444,2.4168,3437.0,3436.2,0.06508828]
[1719779469763,2.4168,3437.0,3435.9,0.832]
[1719779469764,0.832,3436.9,3435.9,0.832]
[1719779470055,0.832,3436.9,3436.3,0.06504703]
[1719779470213,2.4168,3437.0,3435.9,0.374267]
[1719779470415,2.4168,3437.0,3436.4,0.06500579]
[1719779470642,2.4168,3437.0,3436.3,0.832]
[1719779470855,2.4168,3437.0,3436.5,0.06496454]
[1719779471054,2.4168,3437.0,3436.4,0.06500579]
[1719779471259,2.4168,3437.0,3436.6,0.0649233]
[1719779471415,2.4168,3437.0,3436.2,0.832]
[1719779471416,2.4168,3437.0,3436.5,0.06496454]
[1719779471752,3.57368,3437.0,3436.6,0.0649233]
[1719779471919,0.832,3436.7,3436.6,0.0649233]
[1719779472114,0.832,3436.7,3435.5,6.74272]
[1719779472115,2.4559,3436.6,3435.5,6.74272]
[1719779472314,0.832,3436.5,3435.5,3.0]
[1719779472515,0.832,3436.5,3435.6,0.74373439]
[1719779473115,0.832,3436.5,3435.6,1.57573439]
[1719779474121,2.4559,3436.6,3435.8,0.832]
[1719779474321,2.4559,3436.6,3435.9,0.0652032]
[1719779476058,2.4559,3436.6,3436.0,0.832]
[1719779476218,2.4559,3436.6,3435.9,0.0652032]
[1719779476219,2.4559,3436.6,3436.2,0.832]
[1719779476417,2.4559,3436.6,3436.1,0.06513309]
[1719779476957,2.4559,3436.6,3436.2,0.06509007]
[1719779477363,2.4559,3436.6,3435.8,0.832]
[1719779477525,2.4559,3436.6,3436.3,0.06504086]
[1719779477728,2.4559,3436.6,3435.9,0.44210189]
[1719779478129,2.4559,3436.6,3436.0,0.06516461]
[1719779479416,3.2879,3436.6,3436.0,0.06516461]
[1719779479646,3.2879,3436.6,3435.7,0.832]
[1719779479844,3.2879,3436.6,3436.1,0.06512425]
[1719779480154,3.2879,3436.6,3436.2,0.06508299]
[1719779480560,2.4559,3436.2,3435.1,7.92944884]
[1719779480735,2.4559,3436.2,3435.2,3.36554065]
[1719779480923,2.4559,3436.2,3435.3,0.06545434]
[1719779481355,2.4559,3436.2,3435.4,0.45069032]
[1719779481732,2.4559,3436.2,3435.5,0.0653718]
[1719779484140,2.4559,3436.0,3435.2,0.832]
[1719779484365,2.4559,3436.0,3435.3,0.06545434]
[1719779484759,2.4559,3436.0,3435.3,0.21614466]
[1719779487975,2.4559,3436.0,3435.3,0.27435921]
[1719779488281,3.2879,3436.7,3435.8,0.832]
[1719779488449,2.4559,3436.5,3435.8,0.832]
[1719779489047,2.4559,3436.5,3435.9,0.06524832]
[1719779489277,2.4559,3436.5,3435.9,0.12345341]
[1719779489498,2.4559,3436.5,3435.9,0.05820509]
[1719779489776,2.4559,3436.5,3436.0,0.06520707]
[1719779490153,2.4559,3436.5,3435.5,2.91072]
[1719779490355,2.4559,3436.5,3435.7,0.832]
[1719779490664,2.4559,3436.5,3435.8,0.06528958]
[1719779490853,3.2879,3436.5,3435.8,0.06528958]
[1719779491257,3.2879,3436.5,3435.5,0.832]
[1719779491586,3.2879,3436.5,3435.6,0.0653721]
[1719779494147,0.832,3436.5,3435.6,0.0653721]
[1719779494390,2.4792,3436.2,3435.6,0.0653721]
[1719779494887,2.4792,3436.2,3435.3,0.98269032]
[1719779495091,2.4792,3436.2,3435.7,0.06533084]
[1719779495302,2.4792,3436.2,3435.3,0.98269032]
[1719779495789,2.4792,3436.2,3435.4,0.06545464]
[1719779496091,2.4792,3436.2,3435.4,0.47026914]
[1719779496250,2.4792,3436.2,3435.4,0.06545464]
[1719779496696,2.4792,3436.2,3434.9,3.07664129]
[1719779496954,2.4792,3436.2,3435.2,0.832]
[1719779497171,2.4792,3436.2,3435.3,0.06554189]
[1719779497375,2.4792,3435.7,3435.3,0.06554189]
[1719779497763,2.4792,3435.7,3434.9,0.07664129]
[1719779498064,2.4792,3435.7,3435.0,0.06566571]
[1719779502194,0.832,3435.6,3435.0,0.06566571]
[1719779503060,2.4792,3435.7,3435.0,0.06566571]
[1719779503603,2.4792,3435.7,3435.1,0.832]
[1719779504097,2.4792,3435.7,3435.2,0.06162218]
[1719779504259,2.4792,3436.2,3435.3,0.832]
[1719779504583,0.832,3436.1,3435.4,0.06153876]
[1719779504775,0.832,3436.1,3435.1,0.832]
[1719779504984,0.832,3436.1,3435.2,0.50182929]
[1719779505179,0.832,3436.1,3435.3,0.832]
[1719779505502,2.4792,3436.2,3435.4,0.11975362]
[1719779505717,3.0,3436.3,3435.7,0.832]
[1719779505875,2.4792,3436.8,3435.9,0.832]
[1719779506082,2.4792,3436.8,3436.1,0.832]
[1719779506470,2.4792,3436.8,3436.2,0.06118922]
[1719779507277,7.32,3437.1,3436.4,0.832]
[1719779507476,2.4792,3437.3,3436.4,0.832]
[1719779507795,0.33112,3437.2,3436.5,0.06106548]
[1719779508194,0.33112,3437.2,3436.2,0.05820082]
[1719779508382,0.33112,3437.2,3436.6,0.06096765]
[1719779508718,0.33112,3437.2,3436.3,0.05819456]
[1719779508897,0.33112,3437.2,3436.7,0.06087334]
[1719779509215,0.281032,3437.1,3436.8,0.06083211]
[1719779509569,0.281032,3437.1,3436.3,0.05819455]
[1719779509769,3.0,3437.2,3436.4,0.06099707]
[1719779509970,2.4792,3437.3,3436.4,0.06099707]
[1719779511008,2.4792,3437.3,3436.1,2.91027]
[1719779511213,2.4792,3437.3,3436.5,0.06095582]
[1719779511414,2.4792,3437.3,3436.1,2.91027]
[1719779511573,2.4792,3437.3,3436.6,0.06091458]
[1719779511775,2.4792,3437.3,3436.2,0.582068]
[1719779512016,2.4792,3437.3,3436.3,0.06103832]
[1719779515219,2.4792,3437.3,3436.3,0.11923293]
[1719779517692,5.4462,3437.7,3436.4,2.91]
[1719779517922,3.4782,3437.7,3436.5,0.71033615]
[1719779518122,3.0,3437.6,3436.5,0.71033615]
[1719779518338,3.0,3437.6,3436.6,0.06091458]
[1719779518930,4.37982,3437.6,3436.6,0.06091458]
[1719779521112,3.0,3437.6,3436.6,0.06091458]
[1719779521348,2.4462,3437.7,3436.6,0.06091458]
[1719779525943,2.4462,3437.7,3436.5,0.05819006]
[1719779526648,2.4462,3437.7,3436.6,0.06088632]
[1719779527524,2.4462,3437.7,3436.4,0.05819298]
[1719779527724,2.4462,3437.7,3436.5,0.2968283]
[1719779527918,2.4462,3437.7,3436.5,0.35775586]
[1719779527919,0.831,3437.3,3436.5,0.35775586]
[1719779530352,0.831,3437.4,3436.5,0.35775586]
[1719779531219,3.0,3437.6,3436.5,0.35775586]
[1719779531457,2.4462,3437.7,3436.6,0.41570388]
[1719779531674,2.4462,3437.7,3436.6,1.24670388]
[1719779532156,0.831,3437.5,3436.7,0.06084064]
[1719779532518,3.0,3437.6,3436.7,0.06084064]
[1719779532717,2.4462,3437.7,3436.7,0.06084064]
[1719779532718,0.831,3437.5,3436.7,0.06084064]
[1719779535123,3.0,3437.6,3436.7,0.06084064]
[1719779535322,0.831,3437.4,3436.7,0.06084064]
[1719779536736,3.0,3437.6,3436.8,0.42756659]
[1719779537086,2.4462,3437.7,3436.9,0.06075817]
[1719779537087,0.831,3437.5,3436.9,0.06075817]
[1719779539075,3.831,3437.6,3436.9,0.06075817]
[1719779540043,0.831,3437.8,3436.9,0.06075817]
[1719779543429,3.0,3437.9,3436.9,0.06075817]
[1719779543430,0.831,3437.6,3436.9,0.06075817]
[1719779546038,0.831,3437.6,3436.6,0.88918981]
[1719779546281,0.831,3437.6,3437.0,0.06070281]
[1719779546579,0.831,3437.6,3436.7,0.37991898]
[1719779546810,0.831,3437.6,3437.1,0.06066158]
[1719779546939,0.831,3437.6,3436.7,0.37991898]
[1719779547141,0.831,3437.6,3437.2,0.06062035]
[1719779547442,0.831,3437.6,3436.7,0.37991898]
[1719779547946,0.831,3437.6,3436.8,0.06078527]
[1719779548588,3.0,3437.9,3436.8,0.06078527]
[1719779548790,0.831,3437.7,3436.8,0.06078527]
[1719779548945,3.0,3437.9,3436.8,0.06078527]
[1719779549142,0.831,3437.7,3436.8,0.06078527]
[1719779555513,0.831,3437.1,3436.8,0.06078527]
[1719779555801,3.0927,3437.1,3436.0,0.831]
[1719779556001,3.0927,3437.1,3436.1,1.07422629]
[1719779556211,3.0927,3437.1,3436.1,0.06104214]
[1719779556510,3.0927,3437.1,3436.2,0.831]
[1719779556866,3.0927,3437.1,3436.3,0.06095964]
[1719779557799,3.0927,3437.1,3436.1,0.831]
[1719779557999,3.0927,3437.1,3436.2,0.06100089]
[1719779558750,2.2617,3437.1,3436.3,0.831]
[1719779558915,3.0927,3437.3,3436.3,0.831]
[1719779559116,3.0927,3437.3,3436.4,0.06093784]
[1719779559554,0.831,3437.3,3436.4,0.06093784]
[1719779559698,3.831,3437.7,3436.7,0.831]
[1719779559899,0.794003,3437.6,3436.7,0.831]
[1719779560102,3.831,3437.7,3436.8,0.06077288]
[1719779561511,0.831,3437.5,3436.8,0.06077288]
[1719779561845,0.831,3437.5,3436.5,0.831]
[1719779562047,0.831,3437.5,3436.9,0.06073254]
[1719779562258,0.831,3437.5,3436.5,0.831]
[1719779562400,0.831,3437.5,3437.0,0.06069131]
[1719779562598,0.831,3437.5,3436.6,0.374108]
[1719779562803,0.831,3437.5,3436.7,0.06081501]
[1719779566640,0.831,3437.6,3436.7,0.06081501]
[1719779568034,0.831,3437.4,3436.7,0.06081501]
[1719779568675,0.831,3437.4,3436.4,0.831]
[1719779568828,0.831,3437.4,3436.8,0.06077378]
[1719779569021,0.831,3437.4,3436.5,0.4351327]
[1719779569221,0.831,3437.4,3436.6,0.06085625]
[1719779571566,0.831,3437.6,3436.6,0.06085625]
[1719779571860,0.831,3437.6,3436.7,0.49054193]
[1719779572233,0.831,3437.6,3436.8,0.06077378]
[1719779576567,0.831,3437.3,3436.8,0.06077378]
[1719779576772,2.2795,3438.3,3437.2,0.831]
[1719779577004,2.2795,3439.6,3438.0,3.73966]
[1719779577206,2.2795,3439.6,3438.0,1.38660213]
[1719779577390,2.2795,3439.6,3438.0,0.4342186]
[1719779577561,0.831,3438.8,3438.0,0.0602526]
[1719779577965,0.831,3438.8,3437.8,0.831]
[1719779578222,7.32,3439.7,3438.0,0.06024819]
[1719779578223,0.831,3438.6,3438.0,0.06024819]
[1719779578361,2.2795,3438.9,3437.9,0.06028939]
[1719779578362,0.831,3438.4,3437.9,0.06028939]
[1719779578568,0.948805,3438.2,3438.0,0.0601404]
[1719779578887,0.948805,3438.2,3437.3,0.831]
[1719779579292,0.117805,3438.2,3437.5,0.831]
[1719779579810,0.117805,3438.2,3437.6,0.06030525]
[1719779580602,0.117805,3438.2,3437.4,0.374041]
[1719779580903,0.117805,3438.2,3436.2,0.07664129]
[1719779580904,0.831,3437.7,3436.5,0.60865421]
[1719779581071,0.831,3437.7,3436.8,0.831]
[1719779581505,0.831,3437.9,3436.8,0.831]
[1719779581705,0.831,3437.9,3436.4,2.91]
[1719779581706,0.831,3437.9,3436.4,3.51865421]
[1719779582014,3.33991643,3438.1,3436.6,2.90983]
[1719779582179,0.831,3437.9,3436.9,0.831]
[1719779582365,0.781,3437.9,3436.9,0.831]
[1719779583678,0.831,3437.1,3436.5,0.74184468]
[1719779583884,0.57372214,3438.0,3436.2,2.98683129]
[1719779584098,0.831,3437.6,3436.6,0.831]
[1719779584422,0.831,3437.4,3436.4,0.831]
[1719779584589,0.831,3437.4,3436.5,0.38178213]
[1719779584788,0.831,3437.0,3436.5,0.38178213]
[1719779584997,2.2837,3437.4,3436.2,0.90764129]
[1719779585199,0.831,3437.3,3436.2,0.90764129]
[1719779585773,2.2837,3437.4,3436.2,0.07664129]
[1719779586607,2.2837,3437.4,3436.3,0.06077324]
[1719779591013,2.2837,3437.4,3435.8,3.0]
[1719779591187,2.2837,3437.4,3435.9,0.6503858]
[1719779591188,0.72787,3437.3,3435.9,0.6503858]
[1719779591533,3.72787,3437.3,3436.0,0.05906157]
[1719779591899,3.72787,3437.3,3435.6,3.0]
[1719779592113,3.72787,3437.3,3436.1,0.05902031]
[1719779592412,3.72787,3437.3,3436.2,0.05897906]
[1719779592611,3.72787,3437.3,3435.6,3.0]
[1719779592923,3.72787,3437.3,3435.7,0.65026234]
[1719779593295,3.72787,3437.3,3435.8,0.05820379]
[1719779593828,3.72787,3437.3,3435.9,0.05910282]
[1719779594224,3.0,3437.3,3435.9,0.05910282]
[1719779594423,2.2837,3437.4,3436.0,2.96854311]
[1719779594724,2.2837,3437.4,3436.1,0.05902031]
[1719779594925,2.2837,3437.4,3436.2,0.0581965]
[1719779595426,3.0,3437.5,3436.3,0.05893781]
[1719779595723,0.63109436,3437.9,3436.3,0.4198727]
[1719779595724,3.0,3437.8,3436.3,0.4198727]
[1719779596311,3.0,3437.8,3436.3,0.36167824]
[1719779598553,3.0,3437.8,3436.4,0.05819455]
[1719779599051,3.0,3437.8,3436.5,0.05885532]
[1719779599248,3.82191108,3437.8,3436.5,0.05885532]
[1719779605043,3.0,3437.8,3436.5,0.05885532]
[1719779607838,0.831,3437.4,3436.5,0.05885532]
[1719779612068,0.33991643,3438.1,3436.9,0.831]
[1719779612225,0.831,3438.0,3437.1,0.831]
[1719779612425,0.831,3438.0,3437.2,0.44429594]
[1719779613245,0.33991643,3438.1,3437.2,0.44429594]
[1719779613447,0.831,3438.0,3437.2,0.44429594]
[1719779614587,0.33991643,3438.1,3437.2,0.44429594]
[1719779614961,0.33991643,3438.1,3437.2,3.35362594]
[1719779615164,0.33991643,3438.1,3437.3,0.71522273]
[1719779615542,0.33991643,3438.1,3437.4,0.05847807]
[1719779616953,0.831,3438.0,3437.4,0.05847807]
[1719779617530,0.831,3438.0,3437.1,0.831]
[1719779617763,0.831,3438.0,3437.5,0.05828248]
[1719779618065,0.831,3438.0,3437.6,0.05824126]
[1719779618246,0.831,3438.0,3437.1,0.831]
[1719779618446,0.831,3438.0,3437.2,0.43826829]
[1719779620040,0.831,3437.8,3437.2,0.05840615]
[1719779620230,0.831,3437.8,3436.3,0.30274043]
[1719779620435,3.0,3438.0,3436.3,0.30274043]
[1719779620436,0.831,3437.6,3436.6,0.831]
[1719779620679,0.831,3437.6,3436.7,0.05858246]
[1719779622040,3.0,3438.0,3436.5,0.831]
[1719779622041,0.831,3437.4,3436.5,0.831]
[1719779622373,0.831,3437.4,3436.6,0.47199774]
[1719779624989,0.831,3437.2,3436.6,0.47199774]
[1719779625205,0.831,3437.2,3436.6,0.0586237]
[1719779625565,0.831,3437.2,3436.3,1.13374043]
[1719779625566,2.4896,3437.5,3436.3,1.13374043]
[1719779625742,0.831,3437.4,3436.7,0.05858246]
[1719779625948,0.831,3437.4,3436.3,1.13374043]
[1719779626202,2.4896,3437.5,3436.8,0.05854123]
[1719779626447,2.4896,3437.5,3435.8,0.831]
[1719779626671,0.831,3436.9,3435.9,0.05891244]
[1719779628186,3.0,3437.4,3436.0,0.831]
[1719779628363,0.831,3437.1,3436.2,0.831]
[1719779628889,0.831,3437.1,3436.3,0.05874743]
[1719779631175,3.0,3437.4,3436.3,0.05874743]
[1719779631376,3.0,3437.4,3436.4,0.831]
[1719779631377,0.831,3437.4,3436.4,0.831]
[1719779631550,0.831,3437.4,3436.4,0.88970619]
[1719779631750,0.831,3437.2,3436.4,0.05870619]
[1719779632302,0.831,3437.2,3436.5,0.05872378]
[1719779632601,0.831,3437.2,3436.2,0.831]
[1719779632753,0.831,3437.2,3436.6,0.05868253]
[1719779633082,0.831,3437.2,3436.2,0.831]
[1719779633249,0.831,3437.2,3436.7,0.0586413]
[1719779633478,0.831,3437.2,3436.2,0.831]
[1719779633814,0.831,3437.2,3436.3,0.05880627]
[1719779636901,0.831,3437.2,3436.3,0.4388189]
[1719779637109,0.831,3437.0,3436.3,0.05880627]
[1719779637634,0.831,3437.0,3435.8,3.0]
[1719779637635,0.831,3437.0,3436.4,0.05876502]
[1719779638038,0.831,3437.0,3436.0,0.831]
[1719779638175,0.831,3437.0,3436.5,0.05872378]
[1719779638379,0.831,3437.0,3436.0,0.831]
[1719779638640,0.831,3437.0,3436.6,0.05868253]
[1719779638934,0.831,3437.0,3436.1,0.3831]
[1719779639500,0.831,3437.0,3436.2,0.05890546]
[1719779641211,2.4577,3437.3,3435.4,2.9108]
[1719779641212,0.831,3436.6,3435.4,2.9108]
[1719779641420,0.831,3436.6,3436.3,0.05886158]
[1719779641631,0.831,3436.6,3435.2,10.23099]
[1719779641832,2.4577,3436.7,3435.0,3.52042017]
[1719779641833,0.831,3436.2,3435.0,3.52042017]
[1719779642043,0.831,3436.2,3435.3,0.89028121]
[1719779642191,0.831,3436.2,3435.4,0.6334845]
[1719779642391,0.831,3436.2,3435.4,0.05923994]
[1719779646850,7.32,3437.7,3436.0,2.91035]
[1719779646851,2.4577,3437.6,3436.0,2.91035]
[1719779647159,0.117805,3438.2,3437.0,0.831]
[1719779647292,0.117805,3438.2,3436.6,0.05818842]
[1719779647293,2.9092,3437.4,3436.6,0.05818842]
[1719779647500,2.90934,3437.2,3436.7,0.29681084]
[1719779647791,2.90934,3437.2,3436.7,0.05694037]
[1719779648018,2.90922,3437.4,3436.6,0.831]
[1719779648232,2.90926,3437.3,3436.8,0.05683414]
[1719779648424,2.90915,3437.5,3436.8,0.831]
[1719779648707,2.90915,3437.5,3437.0,0.831]
[1719779649120,2.90915,3437.5,3437.1,0.05670957]
[1719779649321,2.90915,3437.5,3436.6,0.05819414]
[1719779649322,2.90915,3437.5,3436.8,0.831]
[1719779649628,2.90915,3437.5,3436.9,0.05679203]